Workbook

Sheet SUMA
A1: SUMA DE FRACCIONS
A2: Escriu les fraccions o bé clica el botó exemples
K3: : | L3: =H7 -> 1
B4: 31 | C4: + | D4: 11 | E4: = | F4: =(H8/B5)*B4 -> 217 | G4: + | H4: =(H8/D5)*D4 -> 55 | I4: = | J4: =F4+H4 -> 272 | K4: = | L4: =J4/H7 -> 272 | M4: RESULTAT
B5: 15 | D5: 21 | F5: =H8 -> 105 | H5: =H8 -> 105 | J5: =H8 -> 105 | L5: =J5/H7 -> 105 | M5: SIMPLIFICAT | X5: 0 | Y5: 0
X6: 0 | Y6: 0
B7: MCD | C7: ( | D7: =ABS(J4) -> 272 | E7: i | F7: =ABS(J5) -> 105 | G7: ) = | H7: =GCD(D7,F7) -> 1 | K7: : | L7: =H7 -> 1 | X7: 0 | Y7: 0
B8: MCM | C8: ( | D8: =ABS(B5) -> 15 | E8: i | F8: =ABS(D5) -> 21 | G8: ) = | H8: =LCM(D8,F8) -> 105 | X8: 0 | Y8: 0
I9: RESULTAT | X9: 0 | Y9: 0
A10: Autor: Enric Seguró i Capa | X10: 0 | Y10: 0

Sheet PRODUCTE
A1: PRODUCTE DE FRACCIONS
A2: Escriu les fraccions o bé clica el botó exemples
K3: : | L3: =H7 -> 1
B4: 15 | C4: • | D4: 36 | E4: = | F4: =B4 -> 15 | G4: • | H4: =D4 -> 36 | I4: = | J4: =F4*H4 -> 540 | K4: = | L4: =(J4/H7) -> 540 | M4: RESULTAT
B5: 23 | D5: 53 | F5: =B5 -> 23 | G5: • | H5: =D5 -> 53 | J5: =F5*H5 -> 1219 | L5: =ABS(J5/H7) -> 1219 | M5: SIMPLIFICAT
B7: MCD | C7: ( | D7: =ABS(J4) -> 540 | E7: i | F7: =ABS(J5) -> 1219 | G7: ) = | H7: =GCD(D7,F7) -> 1 | K7: : | L7: =H7 -> 1
I9: RESULTAT
A10: Autor: Enric Seguró i Capa

Sheet DIVISIÓ
A1: DIVISIÓ DE FRACCIONS
A2: Escriu les fraccions o bé clica el botó exemples
K3: : | L3: =H7 -> 2
B4: 26 | C4: : | D4: 34 | E4: = | F4: =B4 -> 26 | G4: • | H4: =D5 -> 33 | I4: = | J4: =F4*H4 -> 858 | K4: = | L4: =(J4/H7) -> 429 | M4: RESULTAT
B5: 50 | D5: 33 | F5: =B5 -> 50 | G5: • | H5: =D4 -> 34 | J5: =F5*H5 -> 1700 | L5: =ABS(J5/H7) -> 850 | M5: SIMPLIFICAT
B7: MCD | C7: ( | D7: =ABS(J4) -> 858 | E7: i | F7: =J5 -> 1700 | G7: ) = | H7: =GCD(D7,F7) -> 2 | K7: : | L7: =H7 -> 2
I9: RESULTAT
A10: Autor: Enric Seguró i Capa

Sheet RESTA
A1: RESTA DE FRACCIONS
A2: Escriu les fraccions o bé clica el botó exemples
K3: : | L3: =H7 -> 4
B4: 14 | C4: – | D4: 53 | E4: = | F4: =(H8/B5)*B4 -> 322 | G4: – | H4: =(H8/D5)*D4 -> 954 | I4: = | J4: =F4-H4 -> -632 | K4: = | L4: =J4/H7 -> -158 | M4: RESULTAT
B5: 36 | D5: 46 | F5: =H8 -> 828 | H5: =H8 -> 828 | J5: =H8 -> 828 | L5: =J5/H7 -> 207 | M5: SIMPLIFICAT | X5: 0 | Y5: 0
X6: 0 | Y6: 0
B7: MCD | C7: ( | D7: =ABS(J4) -> 632 | E7: i | F7: =ABS(J5) -> 828 | G7: ) = | H7: =GCD(D7,F7) -> 4 | K7: : | L7: =H7 -> 4 | X7: 0 | Y7: 0
B8: MCM | C8: ( | D8: =ABS(B5) -> 36 | E8: i | F8: =ABS(D5) -> 46 | G8: ) = | H8: =LCM(D8,F8) -> 828 | X8: 0 | Y8: 0
I9: RESULTAT | X9: 0 | Y9: 0
A10: Autor: Enric Seguró i Capa | X10: 0 | Y10: 0
